[Event "MOKATE POL-chW 2019"]
[Site "Warsaw"]
[Date "2019.05.19"]
[Round "9.4"]
[White "Rajlich, Iweta"]
[Black "Kulon, Klaudia"]
[Result "1-0"]
[ECO "A49"]
[WhiteElo "2378"]
[BlackElo "2357"]
[Annotator "NA RC"]
[PlyCount "91"]
[EventDate "2019.05.11"]
[EventType "tourn"]
[EventCountry "POL"]
[SourceTitle "playchess.com"]
[Source "ChessBase"]
[SourceQuality "1"]
[TimeControl "40/5400+30:1800+30"]

1. d4 {[%emt 0:00:00]} Nf6 {[%emt 0:00:00]} 2. Nf3 {[%emt 0:00:00]} g6 {[%emt 0:00:00]} 3. g3 {[%emt 0:00:00]} Bg7 {[%emt 0:00:00]} 4. Bg2 {[%emt 0:00:00]} O-O {[%emt 0:00:00]} 5. O-O {[%emt 0:00:00]} d6 {[%emt 0:00:00]} 6. Re1 {[%emt 0:00:00]} Na6 {[%emt 0:04:09] A49: 1 d4 Nf6 2 Nf3 g6 3 g3: Anti-King's Indian systems} (6... Nbd7 7. e4 e5 8. Nc3 b6 9. h3 Bb7 10. d5 Qe7 11. Bg5 h6 12. Be3 Rac8 13. Qd2 Kh7 14. Nh2 c6 15. dxc6 Rxc6 16. Ng4 {1-0 (37) Artemiev,V (2736)-Firouzja,A (2657) Astana 2019}) 7. e4 {[%emt 0:02:32]} c5 {[%emt 0:00:33]} 8. e5 $146 {[%emt 0:02:54]} ({Predecessor:} 8. c3 cxd4 9. cxd4 d5 10. e5 Ne4 11. Nfd2 Ng5 12. Re2 f6 13. h4 Nf7 14. exf6 Bxf6 {0-1 (44) Slipak,S (2456)-Pichot,A (2550) Buenos Aires 2016}) 8... dxe5 {[%emt 0:13:16]} 9. dxe5 {[%emt 0:00:05]} Nd7 {[%emt 0:01:13]} 10. Qe2 {[%emt 0:04:39]} Nc7 {[%emt 0:02:30]} 11. Nc3 {[%emt 0:02:07]} Ne6 {[%emt 0:02:37]} 12. Bf4 {[%emt 0:06:10]} Nxf4 {[%emt 0:09:40]} 13. gxf4 {[%emt 0:01:17]} e6 {[%emt 0:00:04]} 14. Rad1 {[%emt 0:03:54]} Qb6 {[%emt 0:09:03]} 15. Nb5 {[%emt 0:03:37]} a6 {[%emt 0:02:20]} 16. Nd6 {[%emt 0:00:10]} Nb8 {[%emt 0:03:18]} 17. Nxc8 {[%emt 0:02:36]} Rxc8 {[%emt 0:00:02]} 18. Ng5 {[%emt 0:03:26]} Nc6 {[%emt 0:02:59]} 19. Bxc6 {[%emt 0:06:13]} Qxc6 {[%emt 0:02:37]} 20. Rd6 {[%emt 0:00:36]} Qa4 {[%emt 0:01:29]} 21. Qe4 {[%emt 0:01:48]} Qxe4 {[%emt 0:02:05]} 22. Nxe4 {[%emt 0:00:21]} Rc7 {[%emt 0:00:26]} 23. Red1 {[%emt 0:04:19]} h6 {[%emt 0:00:05]} 24. h4 {[%emt 0:02:36]} Kh7 {[%emt 0:00:47]} 25. Kg2 {[%emt 0:01:40]} c4 {[%emt 0:08:43]} 26. Rd7 {[%emt 0:02:08]} Rac8 {[%emt 0:00:06]} 27. a4 {[%emt 0:01:32]} Kg8 {[%emt 0:06:04]} 28. Rd8+ {[%emt 0:01:36]} Rxd8 {[%emt 0:00:05]} 29. Rxd8+ {[%emt 0:00:04]} Kh7 {[%emt 0:00:03]} 30. Kf3 {[%emt 0:02:26]} Bh8 {[%emt 0:05:01]} 31. c3 {[%emt 0:03:05]} Bg7 {[%emt 0:00:04]} 32. a5 {[%emt 0:08:17]} g5 {[%emt 0:02:28]} 33. hxg5 {[%emt 0:02:19]} h5 {[%emt 0:00:03]} (33... hxg5 $142 34. Nxg5+ Kg6) 34. Nd6 {[%emt 0:03:58]} Rc5 {[%emt 0:04:06]} 35. Rd7 {[%emt 0:00:56]} Rd5 {[%emt 0:00:38]} 36. Rxf7 {[%emt 0:00:53]} Rd3+ {[%emt 0:00:06]} 37. Kg2 {[%emt 0:00:45]} Kg6 {[%emt 0:00:05]} 38. Re7 {[%emt 0:01:05]} h4 {[%emt 0:00:04]} 39. f3 {[%emt 0:03:19]} Bf8 {[%emt 0:03:49]} 40. Rxe6+ {[%emt 0:00:00]} Kh5 {[%emt 0:00:00]} 41. Ne4 {[%emt 0:01:33]} Bg7 {[%emt 0:01:54]} 42. Re7 {[%emt 0:03:43]} Bf8 {[%emt 0:02:25]} 43. Rh7+ {[%emt 0:00:15]} Kg6 {[%emt 0:00:05]} 44. Rxh4 {[%emt 0:00:34]} Rd1 {[%emt 0:01:38]} 45. Rh8 {[%emt 0:01:43]} Bg7 {[%emt 0:00:33]} 46. Rb8 $18 {[%emt 0:00:18]} 1-0